Workbook

Sheet 2007MitsubishiGalant_Summary
A1: Date | B1: Sale | C1: Price/Gal | D1: Gallons | E1: Odometer | F1: Miles Per Gallon | G1: Price Per Mile
A2: 2011-11-21 | B2: 46.53 | C2: 3.21 | D2: 12.23 | E2: 67587 | F2: =IFERROR((E2-E1)/D1,"") ->  | G2: =IFERROR(C1/(E2-E1),"") ->  | M2: View the Blog
A3: 2011-11-29 | B3: 47.12 | C3: 3.19 | D3: 12.39 | E3: 67871 | F3: =IFERROR((E3-E2)/D2,"") -> 23.22158626 | G3: =IFERROR(C2/(E3-E2),"") -> 0.0113028169
A4: 2011-12-04 | B4: 41.79 | C4: 3.11 | D4: 11.34 | E4: 68059 | F4: 15.17352704 | G4: 0.01696808511
A5: 2011-12-13 | B5: 46.38 | C5: 3.16 | D5: 12.38 | E5: 68304 | F5: 21.60493827 | G5: 0.01269387755
A6: 2011-12-14 | B6: 48.99 | C6: 3.08 | D6: 12.66 | E6: 68601 | F6: 23.99030695 | G6: 0.01063973064
A7: 2011-11-15 | B7: 47.65 | C7: 3.12 | D7: 12.2 | E7: 68867 | F7: 21.01105845 | G7: 0.01157894737
A8: 2011-12-16 | B8: 49.01 | C8: 3.04 | D8: 12.77 | E8: 69031 | F8: 13.44262295 | G8: 0.01902439024
A9: 2011-12-17 | B9: 49.98 | C9: 3.02 | D9: 12.98 | E9: 69291 | F9: 20.36021926 | G9: 0.01169230769
A10: 2011-12-18 | B10: 46.42 | C10: 3.01 | D10: 11.75 | E10: 69526 | F10: 18.10477658 | G10: 0.01285106383
A11: 2011-12-20 | B11: 40.34 | C11: 3.01 | D11: 10.34 | E11: 69800 | F11: 23.31914894 | G11: 0.01098540146
E13: Average | F13: =ROUND(AVERAGE(F2:F11),2) -> 20.03 | G13: =ROUND(AVERAGE(G2:G11),2) -> 0.01

Sheet Home

Sheet My Garage
A1: Year | B1: Make | C1: Model | D1: Combined | E1: Oil Change Basis | F1: Frequency | G1: Tire Replacement | H1: Tire Rotation | I1: Tag Renewal | J1: Current Odometer
A2: 2007 | B2: Mitsubishi | C2: Galant | D2: 2007 Mitsubishi Galant | E2: Miles | F2: 2000 | G2: 40000 | H2: 12000 | I2: 2011-08-01 | J2: =MAX(Table6[[#All],[Odometer]]) -> 69800
A3: 2003 | B3: Toyota | C3: Corolla | D3: 2003 Toyota Corolla | E3: Miles | F3: 4500 | G3: 50000 | H3: 15000 | I3: 2011-04-01 | J3: =MAX(Table5[[#All],[Odometer]]) -> 81620
A4: 1998 | B4: Honda | C4: Civic | D4: 1998 Honda Civic | E4: Miles | F4: 3500 | G4: 42000 | H4: 12000 | I4: 2010-12-01 | J4: =MAX(Table7[[#All],[Odometer]]) -> 105776
D5: =CONCATENATE(A5," ",B5," ",C5) -> 

Sheet 2007 Mitsubishi Galant
A1: Date | B1: Sale | C1: Price/Gal | D1: Gallons | E1: Odometer | F1: Grade | G1: Column1 | L1: Maintenance | R1: Last Maintenance
A2: 2011-11-21 | B2: 46.53 | C2: 3.21 | D2: 12.23 | E2: 67587 | F2: 85 | L2: Date | M2: Type | N2: Location | O2: Amount | P2: Odometer | R2: Oil Change | S2: =VLOOKUP(MAX(Table1[[#All],[Date]]),Table1[#All],5,FALSE) -> 65500 | T2: 2011-11-04 | U2: =IF(MAX(Table6[[#All],[Odometer]])>(LastOilChange+GarageTable[[#This Row],[Frequency]]),"yes","no") -> yes
A3: 2011-11-29 | B3: 47.12 | C3: 3.19 | D3: 12.39 | E3: 67871 | F3: 85 | L3: 2011-11-02 | M3: Oil Change | N3: Jiffy lube | O3: 31.25 | P3: 63500 | R3: Tire Rotation | S3: =P6 -> 65200
A4: 2011-12-04 | B4: 41.79 | C4: 3.11 | D4: 11.34 | E4: 68059 | F4: 85 | L4: 2011-11-04 | M4: Tire Rotation | N4: Discount | O4: 10 | P4: 63750 | R4: Tire Replacement | S4: =P8 -> 35000
A5: 2011-12-13 | B5: 46.38 | C5: 3.16 | D5: 12.38 | E5: 68304 | F5: 85 | L5: 2011-11-06 | M5: Oil Change | N5: Walmart | O5: 35 | P5: 64700
A6: 2011-12-14 | B6: 48.99 | C6: 3.08 | D6: 12.66 | E6: 68601 | F6: 85 | G6: 85 | L6: 2011-11-15 | M6: Tire Rotation | N6: Discount | O6: 10 | P6: 65200
A7: 2011-11-15 | B7: 47.65 | C7: 3.12 | D7: 12.2 | E7: 68867 | F7: 85 | G7: 0 | L7: 2011-11-16 | M7: Oil Change | N7: Jiffy | O7: 25 | P7: 65500
A8: 2011-12-16 | B8: 49.01 | C8: 3.04 | D8: 12.77 | E8: 69031 | F8: 85 | G8: 0 | L8: 2010-10-04 | M8: Tire Replacement | N8: Discount Tire | O8: 750 | P8: 35000
A9: 2011-12-17 | B9: 49.98 | C9: 3.02 | D9: 12.98 | E9: 69291 | F9: 85 | G9: 0
A10: 2011-12-18 | B10: 46.42 | C10: 3.01 | D10: 11.75 | E10: 69526 | F10: 85 | G10: 0
A11: 2011-12-20 | B11: 40.34 | C11: 3.01 | D11: 10.34 | E11: 69800 | F11: 87 | G11: 2

Sheet 2003 Toyota Corolla
A1: Date | B1: Sale | C1: Price/Gal | D1: Gallons | E1: Odometer | F1: Grade | G1: Column1 | L1: Maintenance | R1: Last Maintenance
A2: 2011-11-22 | B2: 36.35 | C2: 3.14 | D2: 10.78 | E2: 78987 | F2: 87 | L2: Date | M2: Type | N2: Location | O2: Amount | P2: Odometer | R2: Oil Change | S2: =P7 -> 77200
A3: 2011-11-28 | B3: 38.71 | C3: 3.1 | D3: 11.23 | E3: 79269 | F3: 87 | L3: 2011-11-30 | M3: New Head Gasket | N3: Clegg's Auto | O3: 1845.34 | P3: 65789 | R3: Tire Rotation | S3: =P5 -> 52000
A4: 2011-12-02 | B4: 37.29 | C4: 3.1 | D4: 10.67 | E4: 79550 | F4: 87 | G4: 0 | L4: 2011-11-07 | M4: Oil Change | N4: Jiffy | O4: 25 | P4: 72430 | R4: Tire Replacement | S4: =P6 -> 25000
A5: 2011-12-05 | B5: 36.31 | C5: 3.02 | D5: 10.8 | E5: 79809 | F5: 87 | G5: 0 | L5: 2011-09-05 | M5: Tire Rotation | N5: Discount | O5: 20 | P5: 52000
A6: 2011-11-02 | B6: 36.67 | C6: 3.03 | D6: 10.12 | E6: 80047 | F6: 87 | G6: 0 | L6: 2011-09-05 | M6: Tire Replacement | N6: Discount | O6: 800 | P6: 25000
A7: 2011-12-07 | B7: 35.47 | C7: 2.98 | D7: 9.98 | E7: 80311 | F7: 87 | G7: 0 | L7: 2011-09-05 | M7: Oil Change | N7: Walmart | O7: 30 | P7: 77200
A8: 2011-12-09 | B8: 36.66 | C8: 3.01 | D8: 10.56 | E8: 80596 | F8: 87 | G8: 0
A9: 2011-12-12 | B9: 34.33 | C9: 2.99 | D9: 9.67 | E9: 80765 | F9: 87 | G9: 0
A10: 2011-12-13 | B10: 38.9 | C10: 3.1 | D10: 10.89 | E10: 81034 | F10: 87 | G10: 0
A11: 2011-12-16 | B11: 40.34 | C11: 3.01 | D11: 10.1 | E11: 81322 | F11: 87 | G11: 0
A12: 2011-11-02 | B12: 33.11 | C12: 2.96 | D12: 8.13 | E12: 81620 | F12: 87
G13: 0

Sheet 1998 Honda Civic
A1: Date | B1: Sale | C1: Price/Gal | D1: Gallons | E1: Odometer | F1: Grade | G1: Column1 | L1: Maintenance | R1: Last Maintenance
A2: 2011-11-23 | B2: 37.84 | C2: 3.16 | D2: 10.21 | E2: 103124 | F2: 85 | L2: Date | M2: Type | N2: Location | O2: Amount | P2: Odometer | R2: Oil Change | S2: =P4 -> 101100
A3: 2011-11-25 | B3: 41.22 | C3: 3.19 | D3: 11.21 | E3: 103567 | F3: 85 | G3: 0 | L3: 2011-09-05 | M3: Oil Change | N3: Walmart | O3: 30 | P3: 98200 | R3: Tire Rotation | S3: =P5 -> 100000
A4: 2011-11-30 | B4: 40.78 | C4: 3.12 | D4: 10.98 | E4: 104100 | F4: 85 | G4: 0 | L4: 2011-10-19 | M4: Oil Change | N4: Walmart | O4: 30 | P4: 101100 | R4: Tire Replacement | S4: =P6 -> 75000
A5: 2011-12-02 | B5: 37.11 | C5: 3.06 | D5: 9.8 | E5: 104420 | F5: 85 | G5: 0 | L5: 2011-07-12 | M5: Tire Rotation | N5: Discount | O5: 30 | P5: 100000
A6: 2011-12-05 | B6: 38.54 | C6: 3.24 | D6: 10.2 | E6: 104876 | F6: 85 | G6: 0 | L6: 2011-01-11 | M6: Tire Replacement | N6: Discount | O6: 600 | P6: 75000
A7: 2011-12-08 | B7: 36.78 | C7: 3.01 | D7: 10.23 | E7: 105032 | F7: 87 | G7: 2
A8: 2011-12-12 | B8: 36.78 | C8: 3.02 | D8: 10.21 | E8: 105303 | F8: 87 | G8: 0
A9: 2011-12-15 | B9: 38.76 | C9: 3.06 | D9: 10.23 | E9: 105583 | F9: 87 | G9: 0
A10: 2011-12-17 | B10: 34.43 | C10: 2.96 | D10: 9.08 | E10: 105776 | F10: 87 | G10: 0

Sheet Summary Maintenance
A1: Vehicle | B1: Current Odometer | C1: Oil Change Due | D1: OIL CHANGE | E1: Tire Rotation Due | F1: TIRE ROTATION | G1: Tire Replacement Due | H1: TIRE REPLACEMENT | I1: Tag Renewal Due | J1: TAG RENEWAL
A2: =IFERROR(GarageTable[[#This Row],[Combined]],"") -> 2007 Mitsubishi Galant | B2: =MAX(Table6[[#All],[Odometer]]) -> 69800 | C2: =LastOilChange+GarageTable[[#This Row],[Frequency]] -> 67500 | D2: =IF(B2>C2,"yes","no") -> yes | E2: =LastRotation+GarageTable[[#This Row],[Tire Replacement]] -> 105200 | F2: =IF(B2>E2,"yes","no") -> no | G2: =LastReplacement+GarageTable[[#This Row],[Tire Replacement]] -> 75000 | H2: =IF(B2>G2,"yes","no") -> no | I2: =GarageTable[[#This Row],[Tag Renewal]]+365 -> 2012-07-31 | J2: =IF(TODAY()>I2,"yes","no") -> no
A3: =IFERROR(GarageTable[[#This Row],[Combined]],"") -> 2003 Toyota Corolla | B3: =MAX(Table5[[#All],[Odometer]]) -> 81620 | C3: ='2003 Toyota Corolla'!S2+GarageTable[[#This Row],[Frequency]] -> 81700 | D3: =IF(B3>C3,"yes","no") -> no | E3: ='2003 Toyota Corolla'!S3+GarageTable[[#This Row],[Tire Rotation]] -> 67000 | F3: =IF(B3>E3,"yes","no") -> yes | G3: ='2003 Toyota Corolla'!S4+GarageTable[[#This Row],[Tire Replacement]] -> 75000 | H3: =IF(B3>G3,"yes","no") -> yes | I3: =GarageTable[[#This Row],[Tag Renewal]]+365 -> 2012-03-31 | J3: =IF(TODAY()>I3,"yes","no") -> no
A4: =IFERROR(GarageTable[[#This Row],[Combined]],"") -> 1998 Honda Civic | B4: =MAX(Table7[[#All],[Odometer]]) -> 105776 | C4: ='1998 Honda Civic'!S2+GarageTable[[#This Row],[Frequency]] -> 104600 | D4: =IF(B4>C4,"yes","no") -> yes | E4: ='1998 Honda Civic'!S3+GarageTable[[#This Row],[Tire Rotation]] -> 112000 | F4: =IF(B4>E4,"yes","no") -> no | G4: ='1998 Honda Civic'!S4+GarageTable[[#This Row],[Tire Replacement]] -> 117000 | H4: =IF(B4>G4,"yes","no") -> no | I4: =GarageTable[[#This Row],[Tag Renewal]]+365 -> 2011-12-01 | J4: =IF(TODAY()>I4,"yes","no") -> yes
A5: =IFERROR(GarageTable[[#This Row],[Combined]],"") -> 
A6: =IFERROR(GarageTable[[#This Row],[Combined]],"") -> 
A7: =IFERROR(GarageTable[[#This Row],[Combined]],"") -> 
A8: =IFERROR(GarageTable[[#This Row],[Combined]],"") -> 
A9: =IFERROR(GarageTable[[#This Row],[Combined]],"") -> 
A10: =IFERROR(GarageTable[[#This Row],[Combined]],"") -> 
A11: =IFERROR(GarageTable[[#This Row],[Combined]],"") -> 
A12: =IFERROR(GarageTable[[#This Row],[Combined]],"") -> 
A13: =IFERROR(GarageTable[[#This Row],[Combined]],"") -> 
A14: =IFERROR(GarageTable[[#This Row],[Combined]],"") -> 
